fUSD/lending_fUSD_20241004
["ID","MTS","AMOUNT","RATE_DAILY","PERIOD"]
[339859115,1728075034146,-500.0,0.00036986,120]
[339859116,1728075034155,-500.0,0.00036986,120]
[339859117,1728075034165,-500.0,0.00036986,120]
[339859118,1728075034175,-207.52,0.00036986,120]
[339859119,1728075034184,-500.0,0.00036986,120]
[339859120,1728075034194,-500.0,0.00036986,120]
[339859121,1728075034204,-500.0,0.00036986,120]
[339859122,1728075034213,-500.0,0.00036986,120]
[339859123,1728075034224,-472.9438923,0.00036986,120]
[339859124,1728075034234,-500.0,0.00036986,120]
[339859125,1728075034243,-1175.15,0.00036986,120]
[339859126,1728075034253,-500.0,0.00036986,120]
[339859127,1728075034262,-500.0,0.00036986,120]
[339859128,1728075034272,-500.0,0.00036986,120]
[339859129,1728075034282,-500.0,0.00036986,120]
[339859130,1728075034291,-779.61,0.00036986,120]
[339859131,1728075034302,-392.4672543,0.00036986,120]
[339859132,1728075034311,-500.0,0.00036986,120]
[339859133,1728075034321,-500.0,0.00036986,120]
[339859134,1728075034330,-500.0,0.00036986,120]
[339859135,1728075034340,-500.0,0.00036986,120]
[339859136,1728075034350,-500.0,0.00036986,120]
[339859137,1728075034360,-500.0,0.00036986,120]
[339859138,1728075034369,-779.6,0.00036986,120]
[339859139,1728075034379,-500.0,0.00036986,120]
[339859140,1728075034389,-500.0,0.00036986,120]
[339859141,1728075034399,-500.0,0.00036986,120]
[339859142,1728075034409,-500.0,0.00036986,120]
[339859143,1728075034419,-500.0,0.00036986,120]
[339859144,1728075034429,-500.0,0.00036986,120]
[339859145,1728075034438,-500.0,0.00036986,120]
[339859146,1728075034448,-500.0,0.00036986,120]
[339859147,1728075034457,-500.0,0.00036986,120]
[339859148,1728075034470,-500.0,0.00036986,120]
[339859149,1728075034482,-500.0,0.00036986,120]
[339859150,1728075034493,-500.0,0.00036986,120]
[339859151,1728075034503,-500.0,0.00036986,120]
[339859152,1728075034513,-500.0,0.00036986,120]
[339859153,1728075034523,-500.0,0.00036986,120]
[339859154,1728075034532,-722.58,0.00036986,120]
[339859155,1728075034542,-500.0,0.00036986,120]
[339859156,1728075034551,-500.0,0.00036986,120]
[339859157,1728075034563,-500.0,0.00036986,120]
[339859158,1728075034573,-500.0,0.00036986,120]
[339859159,1728075034584,-542.76,0.00036986,120]
[339859160,1728075034593,-500.0,0.00036986,120]
[339859161,1728075034603,-500.0,0.00036986,120]
[339859162,1728075034612,-500.0,0.00036986,120]
[339859163,1728075034622,-814.45,0.00036986,120]
[339859164,1728075034631,-500.0,0.00036986,120]
[339859165,1728075034641,-500.0,0.00036986,120]
[339859166,1728075034650,-500.0,0.00036986,120]
[339859167,1728075034659,-500.0,0.00036986,120]
[339859168,1728075034668,-500.0,0.00036986,120]
[339859169,1728075034678,-500.0,0.00036986,120]
[339859170,1728075034687,-500.0,0.00036986,120]
[339859171,1728075034697,-500.0,0.00036986,120]
[339859172,1728075034706,-500.0,0.00036986,120]
[339859173,1728075034716,-500.0,0.00036986,120]
[339859174,1728075034725,-500.0,0.00036986,120]
[339859175,1728075034735,-838.8,0.00036986,120]
[339859176,1728075034744,-500.0,0.00036986,120]
[339859177,1728075034753,-500.0,0.00036986,120]
[339859178,1728075034763,-915.78,0.00036986,120]
[339859179,1728075034772,-500.0,0.00036986,120]
[339859180,1728075034781,-500.0,0.00036986,120]
[339859181,1728075034791,-500.0,0.00036986,120]
[339859182,1728075034800,-500.0,0.00036986,120]
[339859183,1728075034810,-500.0,0.00036986,120]
[339859184,1728075034819,-500.0,0.00036986,120]
[339859185,1728075034828,-500.0,0.00036986,120]
[339859186,1728075034838,-500.0,0.00036986,120]
[339859187,1728075034847,-500.0,0.00036986,120]
[339859188,1728075034857,-500.0,0.00036986,120]
[339859189,1728075034867,-617.22,0.00036986,120]
[339859190,1728075034876,-500.0,0.00036986,120]
[339859191,1728075034885,-707.71,0.00036986,24]
[339859192,1728075034895,-500.0,0.00036986,120]
[339859193,1728075034904,-500.0,0.00036986,120]
[339859194,1728075034913,-500.0,0.00036986,120]
[339859195,1728075034924,-500.0,0.00036986,120]
[339859196,1728075034933,-500.0,0.00036986,120]
[339859197,1728075034942,-500.0,0.00036986,120]
[339859198,1728075034953,-1487.25,0.00036986,120]
[339859199,1728075034962,-537.45,0.00036986,120]
[339859200,1728075034972,-301.93800719,0.00036986,120]
[339859208,1728075038255,-514.9049,0.00035609,2]
[339859209,1728075038265,-198.06199281,0.00036986,120]
[339859210,1728075038274,-618.69084451,0.00036986,120]
[339859211,1728075038283,-500.0,0.00036986,120]
[339859212,1728075038292,-500.0,0.00036986,120]
[339859213,1728075038301,-500.0,0.00036986,120]
[339859214,1728075038310,-500.0,0.00036986,120]
[339859215,1728075038319,-500.0,0.00036986,120]
[339859216,1728075038328,-781.29,0.00036986,120]
[339859217,1728075038337,-500.0,0.00036986,120]
[339859218,1728075038347,-966.88,0.00036986,120]
[339859219,1728075038356,-500.0,0.00036986,120]
[339859220,1728075038401,-500.0,0.00036986,120]
[339859221,1728075038411,-500.0,0.00036986,120]
[339859222,1728075038420,-500.0,0.00036986,120]
[339859223,1728075038431,-707.57,0.00036986,120]
[339859224,1728075038440,-500.0,0.00036986,120]
[339859225,1728075038450,-500.0,0.00036986,120]
[339859226,1728075038460,-500.0,0.00036986,120]
[339859227,1728075038469,-500.0,0.00036986,120]
[339859229,1728075038479,-1636.56,0.00036986,120]
[339859231,1728075038493,-718.51,0.00036986,120]
[339859233,1728075038503,-500.0,0.00036986,120]
[339859235,1728075038512,-500.0,0.00036986,120]
[339859237,1728075038523,-500.0,0.00036986,120]
[339859239,1728075038533,-828.0,0.00036986,120]
[339859241,1728075038542,-500.0,0.00036986,120]
[339859243,1728075038552,-590.5,0.00036986,120]
[339859245,1728075038562,-500.0,0.00036986,120]
[339859247,1728075038571,-500.0,0.00036986,120]
[339859249,1728075038580,-511.68,0.00036986,120]
[339859251,1728075038589,-86.28756818,0.00036986,120]
[339859253,1728075038601,-745.76243182,0.00036986,120]
[339859255,1728075038610,-242.13756818,0.00036986,120]
[339859257,1728075038625,-250.30570844,0.00036986,120]
[339859277,1728075040308,-217.70672338,0.00036986,120]
[339859278,1728075040318,-500.0,0.00036986,120]
[339859279,1728075040327,-500.0,0.00036986,21]
[339859280,1728075040336,-500.0,0.00036986,120]
[339859281,1728075040347,-262.76255156,0.00036986,120]
[339859282,1728075040358,-237.23744844,0.00036986,120]
[339859283,1728075040367,-389.36413887,0.00036986,120]
[339859284,1728075040417,-686.31586113,0.00036986,120]
[339859285,1728075040427,-500.0,0.00036986,120]
[339859286,1728075040435,-337.07163421,0.00036986,14]
[339859287,1728075040445,-500.0,0.00036986,120]
[339859288,1728075040454,-500.0,0.00036986,120]
[339859289,1728075040462,-277.76,0.00036986,120]
[339859290,1728075040472,-500.0,0.00036986,120]
[339859291,1728075040482,-1917.23,0.00036986,120]
[339859292,1728075040493,-500.0,0.00036986,120]
[339859293,1728075040502,-500.0,0.00036986,120]
[339859294,1728075040511,-500.0,0.00036986,120]
[339859295,1728075040523,-500.0,0.00036986,120]
[339859296,1728075040532,-840.36,0.00036986,120]
[339859297,1728075040542,-500.0,0.00036986,120]
[339859298,1728075040551,-500.0,0.00036986,120]
[339859299,1728075040561,-875.8,0.00036986,120]
[339859300,1728075040570,-500.0,0.00036986,120]
[339859301,1728075040579,-1814.83,0.00036986,120]
[339859302,1728075040588,-500.0,0.00036986,120]
[339859303,1728075040597,-500.0,0.00036986,120]
[339859304,1728075040606,-500.0,0.00036986,120]
[339859305,1728075040615,-500.0,0.00036986,120]
[339859306,1728075040624,-500.0,0.00036986,120]
[339859307,1728075040634,-500.0,0.00036986,120]
[339859308,1728075040643,-500.0,0.00036986,120]
[339859310,1728075040652,-910.57,0.00036986,120]
[339859312,1728075040661,-770.17,0.00036986,120]
[339859314,1728075040670,-500.0,0.00036986,120]
[339859316,1728075040679,-5599.2666987,0.00036989,6]
[339859318,1728075040690,-500.0,0.00036989,120]
[339859320,1728075040699,-500.0,0.00036989,120]
[339859322,1728075040710,-500.0,0.00036989,120]
[339859324,1728075040719,-500.0,0.00036989,120]
[339859326,1728075040729,-500.0,0.00036989,120]
[339859328,1728075040738,-500.0,0.00036989,120]
[339859331,1728075040748,-500.0,0.00036989,120]
[339859333,1728075040758,-500.0,0.00036989,120]
[339859335,1728075040767,-500.0,0.00036989,15]
[339859337,1728075040777,-500.0,0.00036989,15]
[339859338,1728075040786,-433.75500116,0.00036989,15]
[339859340,1728075040797,-500.0,0.00036989,120]
[339859342,1728075040807,-1323.72,0.00036989,120]
[339859344,1728075040816,-500.0,0.00036989,120]
[339859346,1728075040827,-1232.52,0.00036989,120]
[339859347,1728075040836,-500.0,0.00036989,120]
[339859348,1728075040846,-500.0,0.00036989,120]
[339859349,1728075040857,-500.0,0.00036989,120]
[339859351,1728075040867,-500.0,0.00036989,120]
[339859353,1728075040876,-55992.666987,0.0003699,6]
[339859354,1728075040886,-111985.333974,0.0003699,6]
[339859355,1728075040896,-124516.54031746,0.0003699,6]
[339859356,1728075040908,-46591.56946833,0.0003699,6]
[339859357,1728075040921,-300.0,0.0003699,6]
[339859358,1728075040936,-857.61660447,0.0003699,6]
[339859359,1728075040947,-10428.06311016,0.0003699,6]
[339859363,1728075043246,-548.79774281,0.0003699,6]
[339859364,1728075043301,-755.94387,0.0003699,6]
[339859366,1728075043357,-1403.27588378,0.0003699,6]
[339859367,1728075043368,-18386.04645497,0.0003699,6]
[339859368,1728075043379,-18221.22013617,0.0003699,6]
[339859369,1728075043389,-20464.29,0.0003699,6]
[339859370,1728075043415,-562.6023957,0.0003699,6]
[339859371,1728075043426,-4246.81921635,0.0003699,6]
[339859372,1728075043437,-942.316296,0.0003699,6]
[339859373,1728075043630,-730.07140233,0.0003699,6]
[339859374,1728075043641,-652.62529538,0.0003699,6]
[339859379,1728075046201,-500.0,0.00036986,120]
[339859380,1728075046211,-135.39287192,0.00036986,120]
[339859381,1728075046222,-364.60712808,0.00036986,120]
[339859382,1728075046232,-606.67,0.00036986,120]
[339859383,1728075046241,-1638.91357445,0.0003699,6]
[339859384,1728075046312,-7828.07686301,0.0003699,6]
[339859385,1728075046325,-3929.113636,0.0003699,6]
[339859386,1728075046368,-474.935303,0.0003699,6]
[339859387,1728075046424,-1999.71923536,0.0003699,6]
[339859388,1728075046436,-295.659,0.0003699,6]
[339859389,1728075046447,-743.3523116,0.0003699,6]
[339859390,1728075046482,-836.70470417,0.0003699,6]
[339859391,1728075046497,-812.74759037,0.0003699,6]
[339859392,1728075046507,-943.31862009,0.0003699,6]
[339859393,1728075046518,-588.94,0.0003699,6]
[339859394,1728075046541,-3145.66036694,0.0003699,6]
[339859395,1728075046551,-734.01641473,0.0003699,6]
[339859396,1728075046564,-603.28558204,0.0003699,6]
[339859397,1728075046575,-1874.06416438,0.0003699,6]
[339859400,1728075346201,169.34,0.00010959,2]
[339859401,1728075586966,496.234389,0.00012,5]
[339859402,1728075900172,166.68,0.00010959,2]
[339859406,1728076232354,-714.57829354,0.0001716,2]
[339859407,1728076232363,-890.87164196,0.0001716,2]
[339859408,1728076232412,-582.41,0.0001716,2]
[339859409,1728076235027,-2214.70033966,0.0001716,2]
[339859411,1728076235039,-500.0,0.0001726,2]
[339859413,1728076235048,-500.0,0.0001726,2]
[339859415,1728076235059,-260.6625073,0.00030494,120]
[339859417,1728076235068,-156.23292402,0.00032,20]
[339859419,1728076235079,-1970.17,0.00032,2]
[339859421,1728076235089,-150.99,0.00032,2]
[339859423,1728076235099,-2709.0,0.000331,4]
[339859425,1728076235109,-256.41,0.00033164,2]
[339859427,1728076235118,-150.0,0.00034424,2]
[339859429,1728076235127,-2778.38459057,0.00034425,2]
[339859431,1728076235138,-9255.13457725,0.00034425,2]
[339859434,1728076235149,-2519.95441177,0.00034425,2]
[339859457,1728076238344,-9346.52642041,0.00034425,2]
[339859458,1728076238355,-334.27,0.00034766,2]
[339859459,1728076238365,-200.0,0.00034869,2]
[339859460,1728076238375,-274.34,0.00034896,2]
[339859461,1728076238386,-250.0,0.00035111,120]
[339859462,1728076238396,-250.0,0.00035111,2]
[339859463,1728076238405,-229.33,0.00035128,2]
[339859464,1728076238415,-224.62,0.00035128,120]
[339859465,1728076238425,-516.89,0.00035135,2]
[339859466,1728076238436,-579.77122226,0.00035136,2]
[339859467,1728076238518,-606.98,0.00035136,2]
[339859472,1728076240493,-1487.53877774,0.00035136,2]
[339859473,1728076240503,-793.0,0.00035164,2]
[339859474,1728076240512,-250.0,0.00035181,2]
[339859475,1728076240521,-1000.0,0.00035314,2]
[339859476,1728076240530,-2500.0,0.0003538,6]
[339859477,1728076240539,-256.41,0.00035428,2]
[339859478,1728076240548,-581.36872338,0.0003547,2]
[339859479,1728076240557,-155.22,0.00036276,120]
[339859480,1728076240567,-151.100504,0.00036498,120]
[339859481,1728076240576,-299.999999,0.000365,2]
[339859482,1728076240585,-2019.0,0.00036517,111]
[339859483,1728076240594,-151.100504,0.00036598,119]
[339859484,1728076240603,-2500.0,0.00036686,7]
[339859485,1728076240612,-151.100504,0.00036698,119]
[339859486,1728076240621,-300.0,0.000367,2]
[339859487,1728076240631,-167.09751925,0.00036749,2]
[339859488,1728076240642,-250.28731111,0.00036749,2]
[339859489,1728076240651,-1615.2131,0.00036776,2]
[339859490,1728076240660,-2055.60618314,0.00036786,2]
[339859525,1728076243441,-481.0527,0.00036786,2]
[339859531,1728076243603,-2648.1499,0.00036786,2]
[339859532,1728076243660,-534.7850022,0.00036786,2]
[339859533,1728076243718,-63805.23621466,0.00036786,2]
[339859534,1728076243729,-151.100504,0.00036798,120]
[339859535,1728076243740,-279.188,0.00036798,46]
[339859536,1728076243751,-173.6,0.00036798,46]
[339859537,1728076243761,-160.19223291,0.00036798,2]
[339859538,1728076243771,-11354.99422525,0.00036798,15]
[339859539,1728076243780,-749.49,0.0003687,3]
[339859540,1728076243790,-7500.0,0.00036876,2]
[339859541,1728076243800,-1596.2983,0.0003688,2]
[339859542,1728076243810,-11449.9797,0.0003688,2]
[339859543,1728076243819,-489.33831918,0.00036885,15]
[339859544,1728076243829,-245000.0,0.00036886,2]
[339859545,1728076243839,-151.100504,0.00036898,120]
[339859546,1728076243848,-156.84422594,0.00036898,11]
[339859547,1728076243858,-1446.6341,0.00036899,2]
[339859548,1728076243867,-172.52060973,0.000369,9]
[339859549,1728076243877,-175.65007607,0.000369,2]
[339859550,1728076243886,-3226.03080458,0.000369,2]
[339859551,1728076243896,-151.83,0.00036969,2]
[339859552,1728076243906,-12591.3415406,0.0003697,6]
[339859553,1728076243915,-500.0,0.00036973,2]
[339859554,1728076243923,-500.0,0.00036973,5]
[339859555,1728076243933,-62956.707703,0.00036976,6]
[339859556,1728076243943,-207.90205712,0.00036976,2]
[339859557,1728076243952,-25182.6830812,0.00036979,6]
[339859558,1728076243962,-12591.3415406,0.00036979,6]
[339859559,1728076243971,-25182.6830812,0.0003698,6]
[339859560,1728076243981,-500.0,0.00036986,120]
[339859561,1728076243990,-500.0,0.00036986,120]
[339859562,1728076243999,-500.0,0.00036986,120]
[339859563,1728076244008,-500.0,0.00036986,120]
[339859564,1728076244018,-500.0,0.00036986,120]
[339859566,1728076244027,-500.0,0.00036986,120]
[339859567,1728076244040,-500.0,0.00036986,120]
[339859568,1728076244049,-500.0,0.00036986,120]
[339859569,1728076244059,-500.0,0.00036986,120]
[339859570,1728076244068,-500.0,0.00036986,120]
[339859571,1728076244079,-500.0,0.00036986,120]
[339859572,1728076244088,-747.13,0.00036986,120]
[339859573,1728076244097,-500.0,0.00036986,120]
[339859574,1728076244106,-500.0,0.00036986,120]
[339859575,1728076244116,-747.12,0.00036986,120]
[339859576,1728076244126,-500.0,0.00036986,120]
[339859577,1728076244136,-500.0,0.00036986,120]
[339859578,1728076244145,-500.0,0.00036986,120]
[339859579,1728076244154,-500.0,0.00036986,120]
[339859580,1728076244163,-500.0,0.00036986,120]
[339859581,1728076244173,-500.0,0.00036986,120]
[339859582,1728076244182,-500.0,0.00036986,120]
[339859583,1728076244191,-500.0,0.00036986,120]
[339859584,1728076244201,-500.0,0.00036986,120]
[339859585,1728076244210,-500.0,0.00036986,120]
[339859586,1728076244220,-500.0,0.00036986,120]
[339859587,1728076244229,-989.13,0.00036986,120]
[339859588,1728076244239,-500.0,0.00036986,7]
[339859589,1728076244248,-500.0,0.00036986,120]
[339859590,1728076244257,-500.0,0.00036986,120]
[339859591,1728076244267,-2174.32,0.00036986,120]
[339859592,1728076244276,-500.0,0.00036986,120]
[339859593,1728076244286,-500.0,0.00036986,120]
[339859594,1728076244295,-1823.0,0.00036986,120]
[339859595,1728076244304,-955.89,0.00036986,120]
[339859596,1728076244314,-520.15,0.00036986,120]
[339859597,1728076244323,-539.51487243,0.00036986,120]
[339859598,1728076244333,-500.0,0.00036986,120]
[339859599,1728076244342,-703.31,0.00036986,120]
[339859600,1728076244351,-692.47,0.00036986,120]
[339859601,1728076244361,-1079.29,0.00036986,120]
[339859602,1728076244370,-500.0,0.00036986,120]
[339859603,1728076244379,-780.51,0.00036986,120]
[339859604,1728076244389,-500.0,0.00036986,120]
[339859605,1728076244399,-500.0,0.00036986,120]
[339859606,1728076244409,-500.0,0.00036986,120]
[339859607,1728076244418,-500.0,0.00036986,120]
[339859608,1728076244428,-500.0,0.00036986,120]
[339859609,1728076244438,-500.0,0.00036986,120]
[339859610,1728076244447,-500.0,0.00036986,120]
[339859611,1728076244456,-500.0,0.00036986,120]
[339859612,1728076244465,-500.0,0.00036986,120]
[339859613,1728076244476,-500.0,0.00036986,120]
[339859614,1728076244485,-803.85,0.00036986,120]
[339859615,1728076244495,-877.62,0.00036986,120]
[339859616,1728076244504,-500.0,0.00036986,120]
[339859617,1728076244513,-500.0,0.00036986,120]
[339859618,1728076244523,-500.0,0.00036986,120]
[339859619,1728076244532,-500.0,0.00036986,120]
[339859620,1728076244541,-500.0,0.00036986,120]
[339859621,1728076244551,-1220.56,0.00036986,120]
[339859622,1728076244561,-500.0,0.00036986,120]
[339859623,1728076244570,-500.0,0.00036986,120]
[339859624,1728076244579,-500.0,0.00036986,120]
[339859625,1728076244589,-500.0,0.00036986,120]
[339859626,1728076244598,-790.34,0.00036986,120]
[339859627,1728076244608,-1751.5,0.00036986,120]
[339859628,1728076244617,-500.0,0.00036986,120]
[339859629,1728076244626,-500.0,0.00036986,120]
[339859630,1728076244636,-515.82,0.00036986,120]
[339859631,1728076244646,-916.21,0.00036986,120]
[339859632,1728076244655,-500.0,0.00036986,120]
[339859633,1728076244665,-500.0,0.00036986,120]
[339859634,1728076244674,-500.0,0.00036986,120]
[339859635,1728076244683,-1127.59,0.00036986,120]
[339859636,1728076244693,-500.0,0.00036986,120]
[339859637,1728076244702,-515.05,0.00036986,120]
[339859638,1728076244712,-500.0,0.00036986,120]
[339859639,1728076244721,-500.0,0.00036986,120]
[339859640,1728076244731,-500.0,0.00036986,120]
[339859641,1728076244740,-500.0,0.00036986,120]
[339859642,1728076244750,-500.0,0.00036986,120]
[339859643,1728076244759,-500.0,0.00036986,120]
[339859644,1728076244769,-198.88,0.00036986,120]
[339859645,1728076244779,-1126.18,0.00036986,120]
[339859646,1728076244788,-500.0,0.00036986,120]
[339859647,1728076244798,-500.0,0.00036986,120]
[339859648,1728076244807,-500.0,0.00036986,120]
[339859649,1728076244817,-500.0,0.00036986,120]
[339859650,1728076244826,-500.0,0.00036986,120]
[339859651,1728076244836,-500.0,0.00036986,120]
[339859652,1728076244845,-500.0,0.00036986,120]
[339859653,1728076244855,-531.79302956,0.00036986,120]
[339859654,1728076244865,-500.0,0.00036986,120]
[339859655,1728076244874,-500.0,0.00036986,120]
[339859656,1728076244883,-500.0,0.00036986,120]
[339859657,1728076244894,-500.0,0.00036986,120]
[339859658,1728076244903,-205.51164112,0.00036986,120]
[339859659,1728076244913,-500.0,0.00036986,120]
[339859660,1728076244922,-500.0,0.00036986,120]
[339859661,1728076244932,-500.0,0.00036986,120]
[339859662,1728076244941,-346.63305777,0.00036986,120]
[339859663,1728076244950,-500.0,0.00036986,120]
[339859664,1728076244960,-500.0,0.00036986,120]
[339859665,1728076244970,-500.0,0.00036986,120]
[339859666,1728076244979,-500.0,0.00036986,120]
[339859667,1728076244988,-500.0,0.00036986,120]
[339859668,1728076244997,-500.0,0.00036986,120]
[339859669,1728076245007,-500.0,0.00036986,120]
[339859670,1728076245016,-500.0,0.00036986,120]
[339859671,1728076245025,-500.0,0.00036986,120]
[339859672,1728076245039,-500.0,0.00036986,120]
[339859673,1728076245048,-500.0,0.00036986,120]
[339859674,1728076245057,-500.0,0.00036986,120]
[339859675,1728076245066,-500.0,0.00036986,120]
[339859676,1728076245075,-640.030182,0.00036986,120]
[339859677,1728076245084,-500.0,0.00036986,120]
[339859678,1728076245093,-500.0,0.00036986,120]
[339859679,1728076245102,-500.0,0.00036986,120]
[339859680,1728076245111,-528.11,0.00036986,120]
[339859681,1728076245121,-500.0,0.00036986,120]
[339859682,1728076245131,-591.5,0.00036986,120]
[339859683,1728076245141,-500.0,0.00036986,120]
[339859684,1728076245151,-500.0,0.00036986,120]
[339859685,1728076245160,-500.0,0.00036986,120]
[339859686,1728076245170,-500.0,0.00036986,120]
[339859687,1728076245180,-500.0,0.00036986,120]
[339859688,1728076245190,-500.0,0.00036986,120]
[339859689,1728076245207,-500.0,0.00036986,120]
[339859690,1728076245217,-500.0,0.00036986,120]
[339859691,1728076245226,-500.0,0.00036986,120]
[339859692,1728076245235,-500.0,0.00036986,120]
[339859693,1728076245245,-500.0,0.00036986,120]
[339859694,1728076245254,-500.0,0.00036986,120]
[339859695,1728076245263,-500.0,0.00036986,120]
[339859696,1728076245272,-678.22,0.00036986,24]
[339859697,1728076245282,-500.0,0.00036986,120]
[339859698,1728076245291,-512.93401092,0.00036986,120]
[339859699,1728076245300,-500.0,0.00036986,120]
[339859700,1728076245309,-748.74,0.00036986,120]
[339859701,1728076245318,-500.0,0.00036986,120]
[339859702,1728076245328,-500.0,0.00036986,120]
[339859703,1728076245337,-500.0,0.00036986,120]
[339859704,1728076245346,-500.0,0.00036986,120]
[339859705,1728076245356,-500.0,0.00036986,120]
[339859706,1728076245365,-500.0,0.00036986,120]
[339859707,1728076245374,-1425.28,0.00036986,120]
[339859708,1728076245383,-500.0,0.00036986,120]
[339859709,1728076245392,-500.0,0.00036986,120]
[339859710,1728076245402,-926.6,0.00036986,120]
[339859711,1728076245411,-500.0,0.00036986,120]
[339859712,1728076245421,-500.0,0.00036986,120]
[339859713,1728076245430,-500.0,0.00036986,120]
[339859714,1728076245440,-500.0,0.00036986,120]
[339859715,1728076245449,-500.0,0.00036986,120]
[339859716,1728076245458,-500.0,0.00036986,120]
[339859717,1728076245467,-500.0,0.00036986,120]
[339859718,1728076245477,-500.0,0.00036986,120]
[339859719,1728076245487,-500.0,0.00036986,120]
[339859720,1728076245496,-500.0,0.00036986,120]
[339859721,1728076245505,-1268.57,0.00036986,120]
[339859722,1728076245514,-500.0,0.00036986,120]
[339859723,1728076245523,-500.0,0.00036986,120]
[339859724,1728076245532,-1568.37,0.00036986,120]
[339859725,1728076245541,-500.0,0.00036986,120]
[339859726,1728076245550,-500.0,0.00036986,120]
[339859727,1728076245559,-793.5,0.00036986,120]
[339859728,1728076245568,-606.18,0.00036986,120]
[339859729,1728076245577,-500.0,0.00036986,120]
[339859730,1728076245585,-500.0,0.00036986,120]
[339859731,1728076245594,-797.38,0.00036986,120]
[339859732,1728076245603,-500.0,0.00036986,120]
[339859733,1728076245612,-500.0,0.00036986,120]
[339859734,1728076245621,-500.0,0.00036986,120]
[339859735,1728076245630,-500.0,0.00036986,120]
[339859736,1728076245640,-500.0,0.00036986,120]
[339859737,1728076245649,-500.0,0.00036986,120]
[339859738,1728076245658,-500.0,0.00036986,120]
[339859739,1728076245667,-678.09,0.00036986,120]
[339859740,1728076245677,-500.0,0.00036986,120]
[339859741,1728076245686,-500.0,0.00036986,120]
[339859742,1728076245696,-1181.16,0.00036986,120]
[339859743,1728076245705,-500.0,0.00036986,21]
[339859744,1728076245713,-1837.35,0.00036986,120]
[339859745,1728076245722,-500.0,0.00036986,120]
[339859746,1728076245731,-688.57,0.00036986,120]
[339859747,1728076245740,-500.0,0.00036986,120]
[339859748,1728076245749,-500.0,0.00036986,120]
[339859749,1728076245758,-680.56,0.00036986,120]
[339859750,1728076245767,-507.54,0.00036986,120]
[339859751,1728076245777,-500.0,0.00036986,120]
[339859752,1728076245786,-500.0,0.00036986,120]
[339859753,1728076245795,-500.0,0.00036986,120]
[339859754,1728076245805,-500.0,0.00036986,120]
[339859755,1728076245814,-839.31,0.00036986,120]
[339859756,1728076245823,-500.0,0.00036986,120]
[339859757,1728076245832,-500.0,0.00036986,120]
[339859758,1728076245841,-565.9,0.00036986,120]
[339859759,1728076245850,-500.0,0.00036986,120]
[339859760,1728076245859,-1739.21,0.00036986,120]
[339859761,1728076245868,-500.0,0.00036986,120]
[339859762,1728076245878,-500.0,0.00036986,120]
[339859763,1728076245889,-500.0,0.00036986,120]
[339859764,1728076245898,-500.0,0.00036986,120]
[339859765,1728076245907,-500.0,0.00036986,120]
[339859766,1728076245916,-500.0,0.00036986,120]
[339859767,1728076245925,-500.0,0.00036986,120]
[339859768,1728076245935,-500.0,0.00036986,120]